[Event "*** Qualifier 3: Titled Tuesday 3|2 Blitz"]
[Site "Chess.com"]
[Date "2017.04.18"]
[Round "3"]
[White "troisi"]
[Black "hsskoo"]
[Result "0-1"]
[WhiteElo "1355"]
[BlackElo "1960"]
[TimeControl "180+2"]
[EndTime "13:40:07 PDT"]
[Termination "hsskoo won by checkmate"]

1. e4 {[%clk 0:03:01.8]} 1... e6 {[%clk 0:02:59.6]} 2. d4 {[%clk 0:03:02.1]}
2... b6 {[%clk 0:02:56.8]} 3. Nc3 {[%clk 0:03:00.9]} 3... Bb7 {[%clk 0:02:57.7]}
4. Bd3 {[%clk 0:03:02.8]} 4... d5 {[%clk 0:02:56.9]} 5. Nge2 {[%clk 0:03:04.7]}
5... Nf6 {[%clk 0:02:55.5]} 6. e5 {[%clk 0:02:52.4]} 6... Nfd7 {[%clk
0:02:55.2]} 7. f4 {[%clk 0:02:54.3]} 7... c5 {[%clk 0:02:54.7]} 8. Bb5 {[%clk
0:02:55.2]} 8... a6 {[%clk 0:02:54.7]} 9. Bxd7+ {[%clk 0:02:55.7]} 9... Nxd7
{[%clk 0:02:54.9]} 10. Be3 {[%clk 0:02:51.6]} 10... Qh4+ {[%clk 0:02:46.2]} 11.
g3 {[%clk 0:02:52.1]} 11... Qh3 {[%clk 0:02:44.9]} 12. Qd2 {[%clk 0:02:52.5]}
12... b5 {[%clk 0:02:40.7]} 13. O-O-O {[%clk 0:02:52.7]} 13... Be7 {[%clk
0:02:30.7]} 14. dxc5 {[%clk 0:02:54.6]} 14... Nxc5 {[%clk 0:02:19.1]} 15. Nd4
{[%clk 0:02:52.9]} 15... b4 {[%clk 0:02:15.4]} 16. Nb1 {[%clk 0:02:50.9]} 16...
Ne4 {[%clk 0:02:13.9]} 17. Qe2 {[%clk 0:02:51.8]} 17... Rc8 {[%clk 0:02:07.1]}
18. Nf3 {[%clk 0:02:50.8]} 18... O-O {[%clk 0:02:05.5]} 19. Ng1 {[%clk
0:01:46.4]} 19... Qf5 {[%clk 0:01:45.5]} 20. g4 {[%clk 0:01:46.4]} 20... Qg6
{[%clk 0:01:45.5]} 21. h4 {[%clk 0:01:46.9]} 21... Ng3 {[%clk 0:01:34.5]} 22.
Qg2 {[%clk 0:01:31.3]} 22... Nxh1 {[%clk 0:01:34]} 23. h5 {[%clk 0:01:20.6]}
23... d4 {[%clk 0:01:31.1]} 24. hxg6 {[%clk 0:01:12.8]} 24... Bxg2 {[%clk
0:01:31.2]} 25. gxh7+ {[%clk 0:01:14.7]} 25... Kxh7 {[%clk 0:01:31.3]} 26. Bxd4
{[%clk 0:01:13.9]} 26... Ng3 {[%clk 0:01:30.8]} 27. Rd2 {[%clk 0:01:06.1]} 27...
Be4 {[%clk 0:01:30.6]} 28. Rh2+ {[%clk 0:01:08]} 28... Kg8 {[%clk 0:01:30.6]}
29. c3 {[%clk 0:01:09.9]} 29... a5 {[%clk 0:01:29.8]} 30. Ne2 {[%clk 0:00:52.3]}
30... Nxe2+ {[%clk 0:01:29.5]} 31. Rxe2 {[%clk 0:00:54.2]} 31... Bxb1 {[%clk
0:01:29.5]} 32. Kxb1 {[%clk 0:00:53.9]} 32... Rfd8 {[%clk 0:01:28.1]} 33. Rd2
{[%clk 0:00:52.2]} 33... bxc3 {[%clk 0:01:26.7]} 34. bxc3 {[%clk 0:00:54.1]}
34... Ba3 {[%clk 0:01:27.3]} 35. Kc2 {[%clk 0:00:52.5]} 35... Rb8 {[%clk
0:01:25.6]} 36. Kd3 {[%clk 0:00:52.5]} 36... Rb2 {[%clk 0:01:26.1]} 37. Rd1
{[%clk 0:00:53.4]} 37... Rxa2 {[%clk 0:01:25.4]} 38. Ke4 {[%clk 0:00:53.4]}
38... a4 {[%clk 0:01:23.9]} 39. Kf3 {[%clk 0:00:53.3]} 39... Bc5 {[%clk
0:01:19.9]} 40. Ke4 {[%clk 0:00:51]} 40... Bxd4 {[%clk 0:01:19.8]} 41. cxd4
{[%clk 0:00:50.5]} 41... a3 {[%clk 0:01:19.6]} 42. f5 {[%clk 0:00:51.6]} 42...
Rb2 {[%clk 0:01:17.1]} 43. fxe6 {[%clk 0:00:53.5]} 43... fxe6 {[%clk 0:01:16.9]}
44. Kf4 {[%clk 0:00:53.3]} 44... a2 {[%clk 0:01:17.5]} 45. Ra1 {[%clk
0:00:53.2]} 45... Rxd4+ {[%clk 0:01:17.5]} 46. Kg5 {[%clk 0:00:54.8]} 46... Ra4
{[%clk 0:01:18]} 47. Kh5 {[%clk 0:00:55.5]} 47... Rb1 {[%clk 0:01:17.9]} 48. g5
{[%clk 0:00:57.4]} 48... Rxa1 {[%clk 0:01:15.2]} 49. Kg6 {[%clk 0:00:59.3]}
49... Rf1 {[%clk 0:01:12.9]} 50. Kh5 {[%clk 0:00:55.1]} 50... Ra7 {[%clk
0:01:11.9]} 51. Kg6 {[%clk 0:00:55.9]} 51... a1=Q {[%clk 0:01:12.1]} 52. Kh5
{[%clk 0:00:56.9]} 52... Qxe5 {[%clk 0:01:12.6]} 53. Kg6 {[%clk 0:00:58.8]}
53... Qf5+ {[%clk 0:01:11.8]} 54. Kh5 {[%clk 0:01:00.7]} 54... g6+ {[%clk
0:01:10.2]} 55. Kh6 {[%clk 0:01:00.7]} 55... Rh7# {[%clk 0:01:10.4]} 0-1

[Event "*** Qualifier 3: Titled Tuesday 3|2 Blitz"]
[Site "Chess.com"]
[Date "2017.04.18"]
[Round "3"]
[White "Rock700chess"]
[Black "RaphaeI"]
[Result "0-1"]
[WhiteElo "2218"]
[BlackElo "2380"]
[TimeControl "180+2"]
[EndTime "13:40:07 PDT"]
[Termination "RaphaeI won by resignation"]

1. d4 {[%clk 0:03:01.4]} 1... Nf6 {[%clk 0:02:59.2]} 2. c4 {[%clk 0:03:02.3]}
2... e6 {[%clk 0:03:00]} 3. Nc3 {[%clk 0:03:00.6]} 3... Bb4 {[%clk 0:03:00.3]}
4. a3 {[%clk 0:02:56]} 4... Bxc3+ {[%clk 0:03:00.5]} 5. bxc3 {[%clk 0:02:57.9]}
5... c5 {[%clk 0:02:52.9]} 6. e3 {[%clk 0:02:57.7]} 6... b6 {[%clk 0:02:51.7]}
7. Nf3 {[%clk 0:02:57.8]} 7... Ba6 {[%clk 0:02:46.2]} 8. Bd3 {[%clk 0:02:55.2]}
8... Nc6 {[%clk 0:02:46.5]} 9. O-O {[%clk 0:02:54.1]} 9... Na5 {[%clk
0:02:25.5]} 10. Qe2 {[%clk 0:02:52.1]} 10... Rc8 {[%clk 0:02:23]} 11. d5 {[%clk
0:02:39.2]} 11... d6 {[%clk 0:01:30.6]} 12. e4 {[%clk 0:02:33.8]} 12... e5
{[%clk 0:01:31.1]} 13. Nd2 {[%clk 0:02:30.5]} 13... h6 {[%clk 0:01:11.8]} 14. f4
{[%clk 0:02:28.4]} 14... exf4 {[%clk 0:00:59.6]} 15. Rxf4 {[%clk 0:02:21.3]}
15... O-O {[%clk 0:00:58.5]} 16. Nf3 {[%clk 0:02:20.7]} 16... Nb3 {[%clk
0:00:58.7]} 17. Rb1 {[%clk 0:02:15.6]} 17... Nxc1 {[%clk 0:00:59.6]} 18. Rxc1
{[%clk 0:02:15.4]} 18... Qe7 {[%clk 0:00:58.7]} 19. a4 {[%clk 0:02:13.6]} 19...
Rce8 {[%clk 0:00:30]} 20. Nd2 {[%clk 0:01:51.6]} 20... Nd7 {[%clk 0:00:29.2]}
21. Rcf1 {[%clk 0:01:43.7]} 21... Ne5 {[%clk 0:00:30.3]} 22. Nf3 {[%clk
0:01:21.9]} 22... f6 {[%clk 0:00:31.2]} 23. Nh4 {[%clk 0:01:20.9]} 23... Bc8
{[%clk 0:00:32.3]} 24. Bc2 {[%clk 0:01:08]} 24... g5 {[%clk 0:00:33.4]} 25. Nf5
{[%clk 0:01:06.9]} 25... Bxf5 {[%clk 0:00:34.5]} 26. Rxf5 {[%clk 0:01:06.2]}
26... Kg7 {[%clk 0:00:36]} 27. h4 {[%clk 0:01:04.5]} 27... Ng6 {[%clk 0:00:37]}
28. hxg5 {[%clk 0:01:01.2]} 28... hxg5 {[%clk 0:00:38.3]} 29. Qf3 {[%clk
0:00:55.7]} 29... Nh4 {[%clk 0:00:37.1]} 30. Qg4 {[%clk 0:00:48.5]} 30... Nxf5
{[%clk 0:00:37.7]} 31. Rxf5 {[%clk 0:00:50.4]} 31... Rh8 {[%clk 0:00:35.4]} 32.
e5 {[%clk 0:00:45.3]} 32... dxe5 {[%clk 0:00:36.4]} 33. Qe4 {[%clk 0:00:43.1]}
33... Qf7 {[%clk 0:00:37.7]} 34. Rf3 {[%clk 0:00:34.2]} 34... Rh4 {[%clk
0:00:37.2]} 35. Qf5 {[%clk 0:00:31.5]} 35... e4 {[%clk 0:00:37.7]} 36. Re3
{[%clk 0:00:24]} 36... Rf4 {[%clk 0:00:29.3]} 37. Qh3 {[%clk 0:00:21.5]} 37...
Rh8 {[%clk 0:00:30.2]} 38. Qe6 {[%clk 0:00:18]} 38... Qxe6 {[%clk 0:00:22.4]}
39. dxe6 {[%clk 0:00:19.9]} 39... Re8 {[%clk 0:00:20.3]} 40. g3 {[%clk
0:00:20.9]} 40... Rf3 {[%clk 0:00:15.7]} 41. Rxe4 {[%clk 0:00:19.3]} 41... Rxg3+
{[%clk 0:00:16.9]} 42. Kf2 {[%clk 0:00:19.8]} 42... Rxc3 {[%clk 0:00:18.8]} 0-1

[Event "*** Qualifier 3: Titled Tuesday 3|2 Blitz"]
[Site "Chess.com"]
[Date "2017.04.18"]
[Round "3"]
[White "MatBobula"]
[Black "Kacparov"]
[Result "0-1"]
[WhiteElo "2330"]
[BlackElo "2604"]
[TimeControl "180+2"]
[EndTime "13:40:08 PDT"]
[Termination "Kacparov won by resignation"]

1. d4 {[%clk 0:02:58.6]} 1... d6 {[%clk 0:03:00.5]} 2. c4 {[%clk 0:02:57.6]}
2... e5 {[%clk 0:02:59.5]} 3. Nc3 {[%clk 0:02:44.7]} 3... exd4 {[%clk
0:02:58.1]} 4. Qxd4 {[%clk 0:02:45.7]} 4... Nc6 {[%clk 0:02:58.4]} 5. Qd2 {[%clk
0:02:46.4]} 5... g6 {[%clk 0:02:59.4]} 6. b3 {[%clk 0:02:39.1]} 6... Bg7 {[%clk
0:02:59.3]} 7. Bb2 {[%clk 0:02:40.3]} 7... Nf6 {[%clk 0:03:00.5]} 8. e4 {[%clk
0:02:40.9]} 8... a5 {[%clk 0:02:59.9]} 9. Bd3 {[%clk 0:02:41.7]} 9... O-O {[%clk
0:02:57.3]} 10. Nge2 {[%clk 0:02:42]} 10... Re8 {[%clk 0:02:55.3]} 11. O-O
{[%clk 0:02:42.5]} 11... a4 {[%clk 0:02:50.8]} 12. Rad1 {[%clk 0:02:29.8]} 12...
axb3 {[%clk 0:02:45.3]} 13. axb3 {[%clk 0:02:31.7]} 13... h5 {[%clk 0:02:41.4]}
14. Bb1 {[%clk 0:02:13.7]} 14... Kh7 {[%clk 0:02:31.8]} 15. Nd5 {[%clk
0:02:03.1]} 15... Nxd5 {[%clk 0:02:24.7]} 16. exd5 {[%clk 0:02:01.9]} 16... Bxb2
{[%clk 0:02:08.7]} 17. Qxb2 {[%clk 0:02:03.8]} 17... Ne5 {[%clk 0:02:09.7]} 18.
Ng3 {[%clk 0:01:59.3]} 18... h4 {[%clk 0:01:59.3]} 19. Ne4 {[%clk 0:02:00.5]}
19... Bf5 {[%clk 0:01:58.5]} 20. h3 {[%clk 0:01:54.6]} 20... Bxe4 {[%clk
0:01:47.5]} 21. Bxe4 {[%clk 0:01:56.5]} 21... f5 {[%clk 0:01:49]} 22. Bc2 {[%clk
0:01:49.7]} 22... Qf6 {[%clk 0:01:49.5]} 23. Rb1 {[%clk 0:01:29.1]} 23... Kg7
{[%clk 0:01:49.7]} 24. f4 {[%clk 0:01:29.9]} 24... Nd7 {[%clk 0:01:50.4]} 25.
Qxf6+ {[%clk 0:01:29.1]} 25... Nxf6 {[%clk 0:01:50.6]} 26. Ra1 {[%clk
0:01:27.8]} 26... Nh5 {[%clk 0:01:51]} 27. Kf2 {[%clk 0:01:21]} 27... Nxf4
{[%clk 0:01:47.2]} 28. Kf3 {[%clk 0:01:19.9]} 28... Nh5 {[%clk 0:01:46.9]} 29.
Rfe1 {[%clk 0:01:17.1]} 29... Rxa1 {[%clk 0:01:12.2]} 30. Rxa1 {[%clk
0:01:14.1]} 30... Re7 {[%clk 0:01:08.8]} 31. b4 {[%clk 0:01:13.7]} 31... b6
{[%clk 0:01:09.1]} 32. Ra7 {[%clk 0:01:04.9]} 32... Nf6 {[%clk 0:01:09.5]} 33.
Kf4 {[%clk 0:00:59.5]} 33... Kh6 {[%clk 0:00:52.5]} 34. Ra8 {[%clk 0:00:54.1]}
34... Nh5+ {[%clk 0:00:52.4]} 35. Kf3 {[%clk 0:00:54.6]} 35... Kg5 {[%clk
0:00:53.7]} 36. Ra7 {[%clk 0:00:45.1]} 36... Kf6 {[%clk 0:00:50.8]} 37. Rb7
{[%clk 0:00:35.5]} 37... Ng3 {[%clk 0:00:51]} 38. Bd3 {[%clk 0:00:34.8]} 38...
Ke5 {[%clk 0:00:36.7]} 39. Ra7 {[%clk 0:00:24.1]} 39... Kd4 {[%clk 0:00:36.6]}
40. c5 {[%clk 0:00:16.6]} 40... bxc5 {[%clk 0:00:36.4]} 41. bxc5 {[%clk
0:00:17.7]} 41... Kxc5 {[%clk 0:00:34.9]} 42. Kf4 {[%clk 0:00:16.3]} 42... Ne4
{[%clk 0:00:29]} 43. Bxe4 {[%clk 0:00:16.1]} 43... fxe4 {[%clk 0:00:29.7]} 0-1

[Event "*** Qualifier 3: Titled Tuesday 3|2 Blitz"]
[Site "Chess.com"]
[Date "2017.04.18"]
[Round "3"]
[White "GianmarcoVaR"]
[Black "Astaneh"]
[Result "0-1"]
[WhiteElo "2463"]
[BlackElo "2501"]
[TimeControl "180+2"]
[EndTime "13:40:14 PDT"]
[Termination "Astaneh won by resignation"]

1. d4 {[%clk 0:03:02]} 1... d5 {[%clk 0:02:57.7]} 2. Nf3 {[%clk 0:03:03.7]} 2...
Nf6 {[%clk 0:02:42.3]} 3. c4 {[%clk 0:03:05.2]} 3... c6 {[%clk 0:02:43.2]} 4. e3
{[%clk 0:03:06.6]} 4... Bf5 {[%clk 0:02:42.2]} 5. Nc3 {[%clk 0:03:07.3]} 5... e6
{[%clk 0:02:43.4]} 6. Nh4 {[%clk 0:03:08.6]} 6... Bg6 {[%clk 0:02:44.4]} 7. Be2
{[%clk 0:03:10]} 7... Nbd7 {[%clk 0:02:39]} 8. O-O {[%clk 0:03:04.2]} 8... Ne4
{[%clk 0:02:23.5]} 9. Nxg6 {[%clk 0:03:00.8]} 9... Nxc3 {[%clk 0:02:24.1]} 10.
bxc3 {[%clk 0:02:57.3]} 10... hxg6 {[%clk 0:02:25.6]} 11. cxd5 {[%clk
0:02:45.7]} 11... Qh4 {[%clk 0:02:18]} 12. h3 {[%clk 0:02:45.9]} 12... exd5
{[%clk 0:02:18.5]} 13. c4 {[%clk 0:02:41.3]} 13... Nf6 {[%clk 0:02:03.4]} 14.
Qb3 {[%clk 0:02:16.2]} 14... O-O-O {[%clk 0:01:53.8]} 15. Rb1 {[%clk 0:02:12.1]}
15... Rd7 {[%clk 0:01:54.1]} 16. cxd5 {[%clk 0:02:12.8]} 16... Nxd5 {[%clk
0:01:54.5]} 17. a4 {[%clk 0:02:14.4]} 17... a5 {[%clk 0:01:49.8]} 18. Bd2 {[%clk
0:02:14.4]} 18... Bb4 {[%clk 0:01:50.2]} 19. Bxb4 {[%clk 0:02:09.4]} 19... Nxb4
{[%clk 0:01:50.8]} 20. Qc3 {[%clk 0:01:59.9]} 20... Qg5 {[%clk 0:01:32.5]} 21.
e4 {[%clk 0:01:43.5]} 21... Re8 {[%clk 0:01:19.6]} 22. d5 {[%clk 0:01:34.1]}
22... Rxe4 {[%clk 0:01:14.2]} 23. Bf3 {[%clk 0:01:35.2]} 23... Qe5 {[%clk
0:01:03.3]} 24. Qc1 {[%clk 0:01:29.3]} 24... Rxd5 {[%clk 0:00:49.5]} 25. Bxe4
{[%clk 0:01:28.3]} 25... Qxe4 {[%clk 0:00:51.4]} 26. Qc3 {[%clk 0:01:24.8]}
26... Qd4 {[%clk 0:00:50]} 27. Qf3 {[%clk 0:01:23.8]} 27... Rf5 {[%clk
0:00:49.7]} 28. Qg3 {[%clk 0:01:19.5]} 28... Qd3 {[%clk 0:00:47.6]} 29. Qh4
{[%clk 0:01:16.9]} 29... Qd8 {[%clk 0:00:45.2]} 30. Qg4 {[%clk 0:01:08.6]} 30...
Qd7 {[%clk 0:00:42.9]} 31. Rfe1 {[%clk 0:00:34.5]} 31... Rd5 {[%clk 0:00:21.8]}
32. Qh4 {[%clk 0:00:35.5]} 32... Rh5 {[%clk 0:00:18.4]} 33. Qc4 {[%clk
0:00:32.2]} 33... Rd5 {[%clk 0:00:18.4]} 34. Re3 {[%clk 0:00:27.3]} 34... Kc7
{[%clk 0:00:18]} 35. Qf4+ {[%clk 0:00:24.9]} 35... Kb6 {[%clk 0:00:17.7]} 36.
Rbe1 {[%clk 0:00:19.7]} 36... Rd1 {[%clk 0:00:18.3]} 37. Rxd1 {[%clk 0:00:15.8]}
37... Qxd1+ {[%clk 0:00:20.2]} 38. Kh2 {[%clk 0:00:17]} 38... Nd5 {[%clk
0:00:17.3]} 39. Qf3 {[%clk 0:00:10.4]} 39... Nxe3 {[%clk 0:00:16.9]} 40. Qxe3+
{[%clk 0:00:11]} 40... Kc7 {[%clk 0:00:15.4]} 41. Qe5+ {[%clk 0:00:11.3]} 41...
Qd6 {[%clk 0:00:16.8]} 42. f4 {[%clk 0:00:08.8]} 42... Qxe5 {[%clk 0:00:17.8]}
43. fxe5 {[%clk 0:00:10.2]} 43... Kd7 {[%clk 0:00:19.7]} 44. Kg3 {[%clk
0:00:11.3]} 44... Ke6 {[%clk 0:00:21.6]} 45. Kf4 {[%clk 0:00:13.2]} 45... b5
{[%clk 0:00:23.2]} 46. axb5 {[%clk 0:00:14]} 46... cxb5 {[%clk 0:00:25.1]} 47.
Ke4 {[%clk 0:00:15.6]} 47... a4 {[%clk 0:00:27]} 48. Kd4 {[%clk 0:00:17.3]}
48... a3 {[%clk 0:00:28.9]} 49. Kc3 {[%clk 0:00:19.1]} 49... b4+ {[%clk
0:00:30.8]} 50. Kb3 {[%clk 0:00:20.8]} 50... Kxe5 {[%clk 0:00:32.1]} 51. Kxb4
{[%clk 0:00:22.7]} 51... a2 {[%clk 0:00:33.4]} 52. Ka3 {[%clk 0:00:24.6]} 52...
a1=Q+ {[%clk 0:00:35.3]} 53. Kb3 {[%clk 0:00:26.5]} 53... Qd4 {[%clk 0:00:37]}
0-1

[Event "*** Qualifier 3: Titled Tuesday 3|2 Blitz"]
[Site "Chess.com"]
[Date "2017.04.18"]
[Round "3"]
[White "rubhani"]
[Black "Goala"]
[Result "0-1"]
[WhiteElo "2361"]
[BlackElo "2362"]
[TimeControl "180+2"]
[EndTime "13:40:15 PDT"]
[Termination "Goala won by resignation"]

1. Nf3 {[%clk 0:03:02]} 1... Nf6 {[%clk 0:03:00.2]} 2. Nc3 {[%clk 0:03:02.8]}
2... c5 {[%clk 0:03:00.8]} 3. e4 {[%clk 0:03:03.4]} 3... d6 {[%clk 0:02:57.2]}
4. Bc4 {[%clk 0:03:04]} 4... e6 {[%clk 0:02:57.7]} 5. O-O {[%clk 0:03:03.3]}
5... a6 {[%clk 0:02:59.2]} 6. a4 {[%clk 0:03:03.7]} 6... b6 {[%clk 0:02:59.3]}
7. d3 {[%clk 0:03:04.6]} 7... Bb7 {[%clk 0:03:00.3]} 8. h3 {[%clk 0:02:56.3]}
8... Qc7 {[%clk 0:02:58.4]} 9. Nh2 {[%clk 0:02:37.2]} 9... Be7 {[%clk
0:02:57.7]} 10. Ng4 {[%clk 0:02:37.4]} 10... Nc6 {[%clk 0:02:56.7]} 11. Nxf6+
{[%clk 0:02:24.6]} 11... Bxf6 {[%clk 0:02:56.4]} 12. Ne2 {[%clk 0:02:16.2]}
12... O-O {[%clk 0:02:49.8]} 13. Ng3 {[%clk 0:02:17]} 13... g6 {[%clk
0:02:50.3]} 14. f4 {[%clk 0:02:13.9]} 14... Bh4 {[%clk 0:02:38.5]} 15. Qg4
{[%clk 0:02:10.2]} 15... Bxg3 {[%clk 0:02:35.6]} 16. Qxg3 {[%clk 0:02:11.1]}
16... Nd4 {[%clk 0:02:37.3]} 17. Rf2 {[%clk 0:01:45.9]} 17... d5 {[%clk
0:02:35.3]} 18. Ba2 {[%clk 0:01:14.4]} 18... dxe4 {[%clk 0:02:35.9]} 19. dxe4
{[%clk 0:01:11.2]} 19... Bxe4 {[%clk 0:02:34.8]} 20. c3 {[%clk 0:01:09.7]} 20...
Nf5 {[%clk 0:02:33.3]} 21. Qg4 {[%clk 0:01:09.6]} 21... Bd5 {[%clk 0:02:31.2]}
22. Bb1 {[%clk 0:01:08.3]} 22... Rfd8 {[%clk 0:02:23]} 23. Bd2 {[%clk
0:01:08.9]} 23... Bc4 {[%clk 0:02:19.7]} 24. Be4 {[%clk 0:01:08.6]} 24... Rac8
{[%clk 0:02:13.4]} 25. Re1 {[%clk 0:01:03.6]} 25... Bd5 {[%clk 0:02:10.3]} 26.
Bc2 {[%clk 0:01:04.1]} 26... b5 {[%clk 0:02:04.6]} 27. Qg5 {[%clk 0:00:41.4]}
27... Bc4 {[%clk 0:01:57.4]} 28. axb5 {[%clk 0:00:12.3]} 28... axb5 {[%clk
0:01:57.8]} 29. Bxf5 {[%clk 0:00:13.9]} 29... exf5 {[%clk 0:01:57.9]} 30. Be3
{[%clk 0:00:14.3]} 30... Bd3 {[%clk 0:01:50]} 31. Qh6 {[%clk 0:00:12.7]} 31...
Be4 {[%clk 0:01:50.9]} 32. h4 {[%clk 0:00:11.8]} 32... Qe7 {[%clk 0:01:39.2]}
33. b4 {[%clk 0:00:09.2]} 33... cxb4 {[%clk 0:01:37.8]} 34. cxb4 {[%clk
0:00:11.1]} 34... Rd3 {[%clk 0:01:30.9]} 35. Bc5 {[%clk 0:00:10.3]} 35... Rxc5
{[%clk 0:01:25.3]} 36. bxc5 {[%clk 0:00:10.4]} 36... Qxc5 {[%clk 0:01:27.2]} 37.
Qg5 {[%clk 0:00:11.6]} 37... Rd2 {[%clk 0:01:02.6]} 38. Rf1 {[%clk 0:00:12.1]}
38... Kg7 {[%clk 0:00:52.2]} 39. Qg3 {[%clk 0:00:09.1]} 39... b4 {[%clk
0:00:53.4]} 40. h5 {[%clk 0:00:09.8]} 40... h6 {[%clk 0:00:46.5]} 41. hxg6
{[%clk 0:00:10.4]} 41... fxg6 {[%clk 0:00:48.4]} 42. Ra1 {[%clk 0:00:11.1]}
42... Qxf2+ {[%clk 0:00:25.3]} 43. Qxf2 {[%clk 0:00:12.3]} 43... Rxf2 {[%clk
0:00:27.2]} 44. Kxf2 {[%clk 0:00:13.4]} 44... b3 {[%clk 0:00:28.6]} 45. Ra7+
{[%clk 0:00:14.6]} 45... Kh8 {[%clk 0:00:30.1]} 0-1

[Event "*** Qualifier 3: Titled Tuesday 3|2 Blitz"]
[Site "Chess.com"]
[Date "2017.04.18"]
[Round "3"]
[White "Enzy63"]
[Black "cailinchetty"]
[Result "1-0"]
[WhiteElo "2061"]
[BlackElo "1935"]
[TimeControl "180+2"]
[EndTime "13:40:25 PDT"]
[Termination "Enzy63 won by resignation"]

1. d4 {[%clk 0:02:49.4]} 1... Nf6 {[%clk 0:03:00.5]} 2. Nf3 {[%clk 0:02:47.6]}
2... g6 {[%clk 0:03:01.6]} 3. c4 {[%clk 0:02:35.9]} 3... Bg7 {[%clk 0:03:02.8]}
4. g3 {[%clk 0:02:18.7]} 4... d6 {[%clk 0:03:02.5]} 5. Bg2 {[%clk 0:02:16.2]}
5... O-O {[%clk 0:03:03.8]} 6. O-O {[%clk 0:02:14.7]} 6... Nbd7 {[%clk
0:03:05.2]} 7. Nc3 {[%clk 0:02:12.5]} 7... e5 {[%clk 0:03:06.5]} 8. e4 {[%clk
0:02:13.3]} 8... Ne8 {[%clk 0:03:03.2]} 9. b3 {[%clk 0:01:55.6]} 9... c6 {[%clk
0:02:51]} 10. Be3 {[%clk 0:01:51.8]} 10... Qc7 {[%clk 0:02:50.1]} 11. Qc2 {[%clk
0:01:48.6]} 11... Nef6 {[%clk 0:02:46.6]} 12. h3 {[%clk 0:01:48.4]} 12... exd4
{[%clk 0:02:47.6]} 13. Nxd4 {[%clk 0:01:48.1]} 13... Re8 {[%clk 0:02:46.3]} 14.
Rfe1 {[%clk 0:01:47.6]} 14... Nc5 {[%clk 0:02:46.7]} 15. f3 {[%clk 0:01:44.7]}
15... Nfd7 {[%clk 0:02:38.3]} 16. Rad1 {[%clk 0:01:43.6]} 16... Ne5 {[%clk
0:02:35.2]} 17. f4 {[%clk 0:01:43.9]} 17... Ned7 {[%clk 0:02:35.9]} 18. Bf2
{[%clk 0:01:41.4]} 18... Nf6 {[%clk 0:02:34.1]} 19. Qd2 {[%clk 0:01:23.7]} 19...
Bf8 {[%clk 0:02:12.4]} 20. g4 {[%clk 0:01:19.4]} 20... h5 {[%clk 0:02:09.6]} 21.
g5 {[%clk 0:01:18.8]} 21... Nfd7 {[%clk 0:02:06.6]} 22. Bg3 {[%clk 0:01:18.3]}
22... Nb6 {[%clk 0:02:02.7]} 23. Kh1 {[%clk 0:01:14.3]} 23... Bg7 {[%clk
0:01:52]} 24. Nde2 {[%clk 0:01:05.1]} 24... Rd8 {[%clk 0:01:41.9]} 25. Bf2
{[%clk 0:00:58.5]} 25... Be6 {[%clk 0:01:39]} 26. Bd4 {[%clk 0:00:57.2]} 26...
Bxd4 {[%clk 0:01:38.2]} 27. Qxd4 {[%clk 0:00:56.9]} 27... Qd7 {[%clk 0:01:34.5]}
28. Kh2 {[%clk 0:00:56.1]} 28... Qe7 {[%clk 0:01:30.4]} 29. Ng3 {[%clk
0:00:53.7]} 29... h4 {[%clk 0:01:28.8]} 30. Nf1 {[%clk 0:00:53.6]} 30... Rd7
{[%clk 0:01:28.5]} 31. Ne3 {[%clk 0:00:52]} 31... Rad8 {[%clk 0:01:28.3]} 32. f5
{[%clk 0:00:51.4]} 32... Qxg5 {[%clk 0:01:24.6]} 33. fxe6 {[%clk 0:00:51.4]}
33... Nxe6 {[%clk 0:01:20.6]} 34. Qd2 {[%clk 0:00:48.7]} 34... Qg3+ {[%clk
0:01:20.1]} 35. Kh1 {[%clk 0:00:47.3]} 35... Nf4 {[%clk 0:01:21]} 36. Nf1 {[%clk
0:00:46.8]} 36... Qg5 {[%clk 0:01:12]} 37. Qf2 {[%clk 0:00:37.6]} 37... Kh7
{[%clk 0:01:00.7]} 38. Ne2 {[%clk 0:00:37.9]} 38... Nxe2 {[%clk 0:00:53.6]} 39.
Rxe2 {[%clk 0:00:39.2]} 39... Re7 {[%clk 0:00:54.2]} 40. Red2 {[%clk 0:00:36.5]}
40... Nc8 {[%clk 0:00:54.3]} 41. Qe3 {[%clk 0:00:36.5]} 41... Qh5 {[%clk
0:00:53.1]} 42. Qf3 {[%clk 0:00:37.2]} 42... Qe5 {[%clk 0:00:53]} 43. Ne3 {[%clk
0:00:37.8]} 43... Rde8 {[%clk 0:00:51.2]} 44. Ng4 {[%clk 0:00:38.5]} 44... Qg5
{[%clk 0:00:44.5]} 45. Nf6+ {[%clk 0:00:39.3]} 45... Kg7 {[%clk 0:00:46.1]} 46.
Nxe8+ {[%clk 0:00:40.8]} 46... Rxe8 {[%clk 0:00:47.7]} 47. Rf2 {[%clk
0:00:40.2]} 47... f6 {[%clk 0:00:47.3]} 48. Rdf1 {[%clk 0:00:40.4]} 48... Re6
{[%clk 0:00:46.9]} 49. Qf4 {[%clk 0:00:41.2]} 49... Qh5 {[%clk 0:00:47.1]} 50.
Bf3 {[%clk 0:00:41.3]} 50... Qh8 {[%clk 0:00:47.6]} 51. Bg4 {[%clk 0:00:42.4]}
51... g5 {[%clk 0:00:46.9]} 52. Qf3 {[%clk 0:00:42.2]} 52... f5 {[%clk
0:00:45.4]} 53. Qxf5 {[%clk 0:00:39.5]} 1-0